Workbook

Sheet Faktura
B1: Naziv preduzeća
B2: Ulica i broj | D2: T: Broj telefona | F2: Adresa e-pošte
B3: Grad, država i poštanski broj | D3: F: Broj faksa | F3: Veb sajt
B4: Primalac fakture: | C4: =IFERROR(VLOOKUP(VLOOKUP(rngFaktura,FaktureGlavne[],2,FALSE),ListaKlijenata[],3,TRUE),"") -> Contoso d.o.o. | D4: ="Telefon: "&IFERROR(VLOOKUP(VLOOKUP(rngFaktura,FaktureGlavne[],2,FALSE),ListaKlijenata[],9,FALSE),"") -> Telefon: 034-555-0189 | F4: Broj fakture: | G4: 3-456-2
B5: Adresa: | C5: =IFERROR(IF((VLOOKUP(VLOOKUP(rngFaktura,FaktureGlavne[],2,FALSE),ListaKlijenata[],5,FALSE))="","",(VLOOKUP(VLOOKUP(rngFaktura,FaktureGlavne[],2,FALSE),ListaKlijenata[],5,FALSE))),"") -> Karađorđeva 567 | D5: ="Faks: "&IFERROR(VLOOKUP(VLOOKUP(rngFaktura,FaktureGlavne[],2,FALSE),ListaKlijenata[],11,FALSE),"") -> Faks: 034-555-0123 | F5: Datum fakture: | G5: =IFERROR(IF(VLOOKUP(rngFaktura,FaktureGlavne[],3,FALSE)="","",VLOOKUP(rngFaktura,FaktureGlavne[],3,FALSE)),"") -> 2019-08-08
C6: =IFERROR(VLOOKUP(VLOOKUP(rngFaktura,FaktureGlavne[],2,FALSE),ListaKlijenata[],6,FALSE)&", "& VLOOKUP(VLOOKUP(G4,FaktureGlavne[],2,FALSE),ListaKlijenata[],7,FALSE)&" "&VLOOKUP(VLOOKUP(G4,FaktureGlavne[],2,FALSE),ListaKlijenata[],8,FALSE),"") -> Kragujevac, SR 34000 | D6: ="Adresa e-pošte: "&IFERROR(VLOOKUP(VLOOKUP(rngFaktura,FaktureGlavne[],2,FALSE),ListaKlijenata[],10,FALSE),"") -> Adresa e-pošte: neko@example.com
B7: ="Faktura za: "&IFERROR(VLOOKUP(rngFaktura,FaktureGlavne[],4),"") -> Faktura za: Projekat 2
B8: Broj stavke | C8: Opis | D8: Kol. | E8: Cena po jedinici | F8: Popust | G8: Cena
B9: =IFERROR(INDEX(DetaljiFakture[],SMALL(IF(DetaljiFakture[Broj fakture]=rngFaktura,ROW(DetaljiFakture[])-ROW(DetaljiFakture[#Headers])), ROW(1:1)), MATCH($B$8, DetaljiFakture[#Headers], 0)),"") -> Z4567 | C9: =IFERROR(INDEX(DetaljiFakture[],SMALL(IF(DetaljiFakture[Broj fakture]=rngFaktura,ROW(DetaljiFakture[])-ROW(DetaljiFakture[#Headers])), ROW(1:1)), MATCH($C$8, DetaljiFakture[#Headers], 0)),"") -> Faktura 3-456-2, podaci 1 | D9: =IFERROR(INDEX(DetaljiFakture[],SMALL(IF(DetaljiFakture[Broj fakture]=rngFaktura,ROW(DetaljiFakture[])-ROW(DetaljiFakture[#Headers])), ROW(1:1)), MATCH($D$8, DetaljiFakture[#Headers], 0)),"") -> 39 | E9: =IFERROR(INDEX(DetaljiFakture[],SMALL(IF(DetaljiFakture[Broj fakture]=rngFaktura,ROW(DetaljiFakture[])-ROW(DetaljiFakture[#Headers])), ROW(1:1)), MATCH($E$8, DetaljiFakture[#Headers], 0)),"") -> 5.00 RSD | F9: =IFERROR(INDEX(DetaljiFakture[],SMALL(IF(DetaljiFakture[Broj fakture]=rngFaktura,ROW(DetaljiFakture[])-ROW(DetaljiFakture[#Headers])), ROW(1:1)), MATCH($F$8, DetaljiFakture[#Headers], 0)),"") -> 0 | G9: =IFERROR((D9*E9)-F9,"") -> 195.00 RSD
B10: =IFERROR(INDEX(DetaljiFakture[],SMALL(IF(DetaljiFakture[Broj fakture]=rngFaktura,ROW(DetaljiFakture[])-ROW(DetaljiFakture[#Headers])), ROW(2:2)), MATCH($B$8, DetaljiFakture[#Headers], 0)),"") -> Z4568 | C10: =IFERROR(INDEX(DetaljiFakture[],SMALL(IF(DetaljiFakture[Broj fakture]=rngFaktura,ROW(DetaljiFakture[])-ROW(DetaljiFakture[#Headers])), ROW(2:2)), MATCH($C$8, DetaljiFakture[#Headers], 0)),"") -> Faktura 3-456-2, podaci 2 | D10: =IFERROR(INDEX(DetaljiFakture[],SMALL(IF(DetaljiFakture[Broj fakture]=rngFaktura,ROW(DetaljiFakture[])-ROW(DetaljiFakture[#Headers])), ROW(2:2)), MATCH($D$8, DetaljiFakture[#Headers], 0)),"") -> 40 | E10: =IFERROR(INDEX(DetaljiFakture[],SMALL(IF(DetaljiFakture[Broj fakture]=rngFaktura,ROW(DetaljiFakture[])-ROW(DetaljiFakture[#Headers])), ROW(2:2)), MATCH($E$8, DetaljiFakture[#Headers], 0)),"") -> 4.00 RSD | F10: =IFERROR(INDEX(DetaljiFakture[],SMALL(IF(DetaljiFakture[Broj fakture]=rngFaktura,ROW(DetaljiFakture[])-ROW(DetaljiFakture[#Headers])), ROW(2:2)), MATCH($F$8, DetaljiFakture[#Headers], 0)),"") -> 5.00 RSD | G10: 155.00 RSD
B11: =IFERROR(INDEX(DetaljiFakture[],SMALL(IF(DetaljiFakture[Broj fakture]=rngFaktura,ROW(DetaljiFakture[])-ROW(DetaljiFakture[#Headers])), ROW(3:3)), MATCH($B$8, DetaljiFakture[#Headers], 0)),"") -> Z4569 | C11: =IFERROR(INDEX(DetaljiFakture[],SMALL(IF(DetaljiFakture[Broj fakture]=rngFaktura,ROW(DetaljiFakture[])-ROW(DetaljiFakture[#Headers])), ROW(3:3)), MATCH($C$8, DetaljiFakture[#Headers], 0)),"") -> Faktura 3-456-2, podaci 3 | D11: =IFERROR(INDEX(DetaljiFakture[],SMALL(IF(DetaljiFakture[Broj fakture]=rngFaktura,ROW(DetaljiFakture[])-ROW(DetaljiFakture[#Headers])), ROW(3:3)), MATCH($D$8, DetaljiFakture[#Headers], 0)),"") -> 30 | E11: =IFERROR(INDEX(DetaljiFakture[],SMALL(IF(DetaljiFakture[Broj fakture]=rngFaktura,ROW(DetaljiFakture[])-ROW(DetaljiFakture[#Headers])), ROW(3:3)), MATCH($E$8, DetaljiFakture[#Headers], 0)),"") -> 6.00 RSD | F11: =IFERROR(INDEX(DetaljiFakture[],SMALL(IF(DetaljiFakture[Broj fakture]=rngFaktura,ROW(DetaljiFakture[])-ROW(DetaljiFakture[#Headers])), ROW(3:3)), MATCH($F$8, DetaljiFakture[#Headers], 0)),"") -> 7.00 RSD | G11: 173.00 RSD
B12: =IFERROR(INDEX(DetaljiFakture[],SMALL(IF(DetaljiFakture[Broj fakture]=rngFaktura,ROW(DetaljiFakture[])-ROW(DetaljiFakture[#Headers])), ROW(4:4)), MATCH($B$8, DetaljiFakture[#Headers], 0)),"") -> Z4570 | C12: =IFERROR(INDEX(DetaljiFakture[],SMALL(IF(DetaljiFakture[Broj fakture]=rngFaktura,ROW(DetaljiFakture[])-ROW(DetaljiFakture[#Headers])), ROW(4:4)), MATCH($C$8, DetaljiFakture[#Headers], 0)),"") -> Faktura 3-456-2, podaci 4 | D12: =IFERROR(INDEX(DetaljiFakture[],SMALL(IF(DetaljiFakture[Broj fakture]=rngFaktura,ROW(DetaljiFakture[])-ROW(DetaljiFakture[#Headers])), ROW(4:4)), MATCH($D$8, DetaljiFakture[#Headers], 0)),"") -> 40 | E12: =IFERROR(INDEX(DetaljiFakture[],SMALL(IF(DetaljiFakture[Broj fakture]=rngFaktura,ROW(DetaljiFakture[])-ROW(DetaljiFakture[#Headers])), ROW(4:4)), MATCH($E$8, DetaljiFakture[#Headers], 0)),"") -> 7.00 RSD | F12: =IFERROR(INDEX(DetaljiFakture[],SMALL(IF(DetaljiFakture[Broj fakture]=rngFaktura,ROW(DetaljiFakture[])-ROW(DetaljiFakture[#Headers])), ROW(4:4)), MATCH($F$8, DetaljiFakture[#Headers], 0)),"") -> 0 | G12: 280.00 RSD
B13: =IFERROR(INDEX(DetaljiFakture[],SMALL(IF(DetaljiFakture[Broj fakture]=rngFaktura,ROW(DetaljiFakture[])-ROW(DetaljiFakture[#Headers])), ROW(5:5)), MATCH($B$8, DetaljiFakture[#Headers], 0)),"") -> Z4571 | C13: =IFERROR(INDEX(DetaljiFakture[],SMALL(IF(DetaljiFakture[Broj fakture]=rngFaktura,ROW(DetaljiFakture[])-ROW(DetaljiFakture[#Headers])), ROW(5:5)), MATCH($C$8, DetaljiFakture[#Headers], 0)),"") -> Faktura 3-456-2, podaci 5 | D13: =IFERROR(INDEX(DetaljiFakture[],SMALL(IF(DetaljiFakture[Broj fakture]=rngFaktura,ROW(DetaljiFakture[])-ROW(DetaljiFakture[#Headers])), ROW(5:5)), MATCH($D$8, DetaljiFakture[#Headers], 0)),"") -> 10 | E13: =IFERROR(INDEX(DetaljiFakture[],SMALL(IF(DetaljiFakture[Broj fakture]=rngFaktura,ROW(DetaljiFakture[])-ROW(DetaljiFakture[#Headers])), ROW(5:5)), MATCH($E$8, DetaljiFakture[#Headers], 0)),"") -> 4.00 RSD | F13: =IFERROR(INDEX(DetaljiFakture[],SMALL(IF(DetaljiFakture[Broj fakture]=rngFaktura,ROW(DetaljiFakture[])-ROW(DetaljiFakture[#Headers])), ROW(5:5)), MATCH($F$8, DetaljiFakture[#Headers], 0)),"") -> 0 | G13: 40.00 RSD
B14: =IFERROR(INDEX(DetaljiFakture[],SMALL(IF(DetaljiFakture[Broj fakture]=rngFaktura,ROW(DetaljiFakture[])-ROW(DetaljiFakture[#Headers])), ROW(6:6)), MATCH($B$8, DetaljiFakture[#Headers], 0)),"") -> Z4572 | C14: =IFERROR(INDEX(DetaljiFakture[],SMALL(IF(DetaljiFakture[Broj fakture]=rngFaktura,ROW(DetaljiFakture[])-ROW(DetaljiFakture[#Headers])), ROW(6:6)), MATCH($C$8, DetaljiFakture[#Headers], 0)),"") -> Faktura 3-456-2, podaci 6 | D14: =IFERROR(INDEX(DetaljiFakture[],SMALL(IF(DetaljiFakture[Broj fakture]=rngFaktura,ROW(DetaljiFakture[])-ROW(DetaljiFakture[#Headers])), ROW(6:6)), MATCH($D$8, DetaljiFakture[#Headers], 0)),"") -> 5 | E14: =IFERROR(INDEX(DetaljiFakture[],SMALL(IF(DetaljiFakture[Broj fakture]=rngFaktura,ROW(DetaljiFakture[])-ROW(DetaljiFakture[#Headers])), ROW(6:6)), MATCH($E$8, DetaljiFakture[#Headers], 0)),"") -> 8.00 RSD | F14: =IFERROR(INDEX(DetaljiFakture[],SMALL(IF(DetaljiFakture[Broj fakture]=rngFaktura,ROW(DetaljiFakture[])-ROW(DetaljiFakture[#Headers])), ROW(6:6)), MATCH($F$8, DetaljiFakture[#Headers], 0)),"") -> 0 | G14: 40.00 RSD
B15: =IFERROR(INDEX(DetaljiFakture[],SMALL(IF(DetaljiFakture[Broj fakture]=rngFaktura,ROW(DetaljiFakture[])-ROW(DetaljiFakture[#Headers])), ROW(7:7)), MATCH($B$8, DetaljiFakture[#Headers], 0)),"") -> Z4573 | C15: =IFERROR(INDEX(DetaljiFakture[],SMALL(IF(DetaljiFakture[Broj fakture]=rngFaktura,ROW(DetaljiFakture[])-ROW(DetaljiFakture[#Headers])), ROW(7:7)), MATCH($C$8, DetaljiFakture[#Headers], 0)),"") -> Faktura 3-456-2, podaci 7 | D15: =IFERROR(INDEX(DetaljiFakture[],SMALL(IF(DetaljiFakture[Broj fakture]=rngFaktura,ROW(DetaljiFakture[])-ROW(DetaljiFakture[#Headers])), ROW(7:7)), MATCH($D$8, DetaljiFakture[#Headers], 0)),"") -> 70 | E15: =IFERROR(INDEX(DetaljiFakture[],SMALL(IF(DetaljiFakture[Broj fakture]=rngFaktura,ROW(DetaljiFakture[])-ROW(DetaljiFakture[#Headers])), ROW(7:7)), MATCH($E$8, DetaljiFakture[#Headers], 0)),"") -> 6.00 RSD | F15: =IFERROR(INDEX(DetaljiFakture[],SMALL(IF(DetaljiFakture[Broj fakture]=rngFaktura,ROW(DetaljiFakture[])-ROW(DetaljiFakture[#Headers])), ROW(7:7)), MATCH($F$8, DetaljiFakture[#Headers], 0)),"") -> 0 | G15: 420.00 RSD
B16: =IFERROR(INDEX(DetaljiFakture[],SMALL(IF(DetaljiFakture[Broj fakture]=rngFaktura,ROW(DetaljiFakture[])-ROW(DetaljiFakture[#Headers])), ROW(8:8)), MATCH($B$8, DetaljiFakture[#Headers], 0)),"") -> Z4574 | C16: =IFERROR(INDEX(DetaljiFakture[],SMALL(IF(DetaljiFakture[Broj fakture]=rngFaktura,ROW(DetaljiFakture[])-ROW(DetaljiFakture[#Headers])), ROW(8:8)), MATCH($C$8, DetaljiFakture[#Headers], 0)),"") -> Faktura 3-456-2, podaci 8 | D16: =IFERROR(INDEX(DetaljiFakture[],SMALL(IF(DetaljiFakture[Broj fakture]=rngFaktura,ROW(DetaljiFakture[])-ROW(DetaljiFakture[#Headers])), ROW(8:8)), MATCH($D$8, DetaljiFakture[#Headers], 0)),"") -> 25 | E16: =IFERROR(INDEX(DetaljiFakture[],SMALL(IF(DetaljiFakture[Broj fakture]=rngFaktura,ROW(DetaljiFakture[])-ROW(DetaljiFakture[#Headers])), ROW(8:8)), MATCH($E$8, DetaljiFakture[#Headers], 0)),"") -> 4.00 RSD | F16: =IFERROR(INDEX(DetaljiFakture[],SMALL(IF(DetaljiFakture[Broj fakture]=rngFaktura,ROW(DetaljiFakture[])-ROW(DetaljiFakture[#Headers])), ROW(8:8)), MATCH($F$8, DetaljiFakture[#Headers], 0)),"") -> 0 | G16: 100.00 RSD
B17: =IFERROR(INDEX(DetaljiFakture[],SMALL(IF(DetaljiFakture[Broj fakture]=rngFaktura,ROW(DetaljiFakture[])-ROW(DetaljiFakture[#Headers])), ROW(9:9)), MATCH($B$8, DetaljiFakture[#Headers], 0)),"") -> Z4575 | C17: =IFERROR(INDEX(DetaljiFakture[],SMALL(IF(DetaljiFakture[Broj fakture]=rngFaktura,ROW(DetaljiFakture[])-ROW(DetaljiFakture[#Headers])), ROW(9:9)), MATCH($C$8, DetaljiFakture[#Headers], 0)),"") -> Faktura 3-456-2, podaci 9 | D17: =IFERROR(INDEX(DetaljiFakture[],SMALL(IF(DetaljiFakture[Broj fakture]=rngFaktura,ROW(DetaljiFakture[])-ROW(DetaljiFakture[#Headers])), ROW(9:9)), MATCH($D$8, DetaljiFakture[#Headers], 0)),"") -> 5 | E17: =IFERROR(INDEX(DetaljiFakture[],SMALL(IF(DetaljiFakture[Broj fakture]=rngFaktura,ROW(DetaljiFakture[])-ROW(DetaljiFakture[#Headers])), ROW(9:9)), MATCH($E$8, DetaljiFakture[#Headers], 0)),"") -> 7.00 RSD | F17: =IFERROR(INDEX(DetaljiFakture[],SMALL(IF(DetaljiFakture[Broj fakture]=rngFaktura,ROW(DetaljiFakture[])-ROW(DetaljiFakture[#Headers])), ROW(9:9)), MATCH($F$8, DetaljiFakture[#Headers], 0)),"") -> 3.00 RSD | G17: 32.00 RSD
B18: =IFERROR(INDEX(DetaljiFakture[],SMALL(IF(DetaljiFakture[Broj fakture]=rngFaktura,ROW(DetaljiFakture[])-ROW(DetaljiFakture[#Headers])), ROW(10:10)), MATCH($B$8, DetaljiFakture[#Headers], 0)),"") -> Z4576 | C18: =IFERROR(INDEX(DetaljiFakture[],SMALL(IF(DetaljiFakture[Broj fakture]=rngFaktura,ROW(DetaljiFakture[])-ROW(DetaljiFakture[#Headers])), ROW(10:10)), MATCH($C$8, DetaljiFakture[#Headers], 0)),"") -> Faktura 3-456-2, podaci 10 | D18: =IFERROR(INDEX(DetaljiFakture[],SMALL(IF(DetaljiFakture[Broj fakture]=rngFaktura,ROW(DetaljiFakture[])-ROW(DetaljiFakture[#Headers])), ROW(10:10)), MATCH($D$8, DetaljiFakture[#Headers], 0)),"") -> 80 | E18: =IFERROR(INDEX(DetaljiFakture[],SMALL(IF(DetaljiFakture[Broj fakture]=rngFaktura,ROW(DetaljiFakture[])-ROW(DetaljiFakture[#Headers])), ROW(10:10)), MATCH($E$8, DetaljiFakture[#Headers], 0)),"") -> 1.00 RSD | F18: =IFERROR(INDEX(DetaljiFakture[],SMALL(IF(DetaljiFakture[Broj fakture]=rngFaktura,ROW(DetaljiFakture[])-ROW(DetaljiFakture[#Headers])), ROW(10:10)), MATCH($F$8, DetaljiFakture[#Headers], 0)),"") -> 0 | G18: 80.00 RSD
B19: =IFERROR(INDEX(DetaljiFakture[],SMALL(IF(DetaljiFakture[Broj fakture]=rngFaktura,ROW(DetaljiFakture[])-ROW(DetaljiFakture[#Headers])), ROW(11:11)), MATCH($B$8, DetaljiFakture[#Headers], 0)),"") -> Z4577 | C19: =IFERROR(INDEX(DetaljiFakture[],SMALL(IF(DetaljiFakture[Broj fakture]=rngFaktura,ROW(DetaljiFakture[])-ROW(DetaljiFakture[#Headers])), ROW(11:11)), MATCH($C$8, DetaljiFakture[#Headers], 0)),"") -> Faktura 3-456-2, podaci 11 | D19: =IFERROR(INDEX(DetaljiFakture[],SMALL(IF(DetaljiFakture[Broj fakture]=rngFaktura,ROW(DetaljiFakture[])-ROW(DetaljiFakture[#Headers])), ROW(11:11)), MATCH($D$8, DetaljiFakture[#Headers], 0)),"") -> 65 | E19: =IFERROR(INDEX(DetaljiFakture[],SMALL(IF(DetaljiFakture[Broj fakture]=rngFaktura,ROW(DetaljiFakture[])-ROW(DetaljiFakture[#Headers])), ROW(11:11)), MATCH($E$8, DetaljiFakture[#Headers], 0)),"") -> 7.00 RSD | F19: =IFERROR(INDEX(DetaljiFakture[],SMALL(IF(DetaljiFakture[Broj fakture]=rngFaktura,ROW(DetaljiFakture[])-ROW(DetaljiFakture[#Headers])), ROW(11:11)), MATCH($F$8, DetaljiFakture[#Headers], 0)),"") -> 0 | G19: 455.00 RSD
B20: =IFERROR(INDEX(DetaljiFakture[],SMALL(IF(DetaljiFakture[Broj fakture]=rngFaktura,ROW(DetaljiFakture[])-ROW(DetaljiFakture[#Headers])), ROW(12:12)), MATCH($B$8, DetaljiFakture[#Headers], 0)),"") -> Z4578 | C20: =IFERROR(INDEX(DetaljiFakture[],SMALL(IF(DetaljiFakture[Broj fakture]=rngFaktura,ROW(DetaljiFakture[])-ROW(DetaljiFakture[#Headers])), ROW(12:12)), MATCH($C$8, DetaljiFakture[#Headers], 0)),"") -> Faktura 3-456-2, podaci 12 | D20: =IFERROR(INDEX(DetaljiFakture[],SMALL(IF(DetaljiFakture[Broj fakture]=rngFaktura,ROW(DetaljiFakture[])-ROW(DetaljiFakture[#Headers])), ROW(12:12)), MATCH($D$8, DetaljiFakture[#Headers], 0)),"") -> 44 | E20: =IFERROR(INDEX(DetaljiFakture[],SMALL(IF(DetaljiFakture[Broj fakture]=rngFaktura,ROW(DetaljiFakture[])-ROW(DetaljiFakture[#Headers])), ROW(12:12)), MATCH($E$8, DetaljiFakture[#Headers], 0)),"") -> 1.00 RSD | F20: =IFERROR(INDEX(DetaljiFakture[],SMALL(IF(DetaljiFakture[Broj fakture]=rngFaktura,ROW(DetaljiFakture[])-ROW(DetaljiFakture[#Headers])), ROW(12:12)), MATCH($F$8, DetaljiFakture[#Headers], 0)),"") -> 0 | G20: 44.00 RSD
B21: =IFERROR(INDEX(DetaljiFakture[],SMALL(IF(DetaljiFakture[Broj fakture]=rngFaktura,ROW(DetaljiFakture[])-ROW(DetaljiFakture[#Headers])), ROW(13:13)), MATCH($B$8, DetaljiFakture[#Headers], 0)),"") ->  | C21: =IFERROR(INDEX(DetaljiFakture[],SMALL(IF(DetaljiFakture[Broj fakture]=rngFaktura,ROW(DetaljiFakture[])-ROW(DetaljiFakture[#Headers])), ROW(13:13)), MATCH($C$8, DetaljiFakture[#Headers], 0)),"") ->  | D21: =IFERROR(INDEX(DetaljiFakture[],SMALL(IF(DetaljiFakture[Broj fakture]=rngFaktura,ROW(DetaljiFakture[])-ROW(DetaljiFakture[#Headers])), ROW(13:13)), MATCH($D$8, DetaljiFakture[#Headers], 0)),"") ->  | E21: =IFERROR(INDEX(DetaljiFakture[],SMALL(IF(DetaljiFakture[Broj fakture]=rngFaktura,ROW(DetaljiFakture[])-ROW(DetaljiFakture[#Headers])), ROW(13:13)), MATCH($E$8, DetaljiFakture[#Headers], 0)),"") ->  | F21: =IFERROR(INDEX(DetaljiFakture[],SMALL(IF(DetaljiFakture[Broj fakture]=rngFaktura,ROW(DetaljiFakture[])-ROW(DetaljiFakture[#Headers])), ROW(13:13)), MATCH($F$8, DetaljiFakture[#Headers], 0)),"") -> 
B22: =IFERROR(INDEX(DetaljiFakture[],SMALL(IF(DetaljiFakture[Broj fakture]=rngFaktura,ROW(DetaljiFakture[])-ROW(DetaljiFakture[#Headers])), ROW(14:14)), MATCH($B$8, DetaljiFakture[#Headers], 0)),"") ->  | C22: =IFERROR(INDEX(DetaljiFakture[],SMALL(IF(DetaljiFakture[Broj fakture]=rngFaktura,ROW(DetaljiFakture[])-ROW(DetaljiFakture[#Headers])), ROW(14:14)), MATCH($C$8, DetaljiFakture[#Headers], 0)),"") ->  | D22: =IFERROR(INDEX(DetaljiFakture[],SMALL(IF(DetaljiFakture[Broj fakture]=rngFaktura,ROW(DetaljiFakture[])-ROW(DetaljiFakture[#Headers])), ROW(14:14)), MATCH($D$8, DetaljiFakture[#Headers], 0)),"") ->  | E22: =IFERROR(INDEX(DetaljiFakture[],SMALL(IF(DetaljiFakture[Broj fakture]=rngFaktura,ROW(DetaljiFakture[])-ROW(DetaljiFakture[#Headers])), ROW(14:14)), MATCH($E$8, DetaljiFakture[#Headers], 0)),"") ->  | F22: =IFERROR(INDEX(DetaljiFakture[],SMALL(IF(DetaljiFakture[Broj fakture]=rngFaktura,ROW(DetaljiFakture[])-ROW(DetaljiFakture[#Headers])), ROW(14:14)), MATCH($F$8, DetaljiFakture[#Headers], 0)),"") -> 
B23: =IFERROR(INDEX(DetaljiFakture[],SMALL(IF(DetaljiFakture[Broj fakture]=rngFaktura,ROW(DetaljiFakture[])-ROW(DetaljiFakture[#Headers])), ROW(15:15)), MATCH($B$8, DetaljiFakture[#Headers], 0)),"") ->  | C23: =IFERROR(INDEX(DetaljiFakture[],SMALL(IF(DetaljiFakture[Broj fakture]=rngFaktura,ROW(DetaljiFakture[])-ROW(DetaljiFakture[#Headers])), ROW(15:15)), MATCH($C$8, DetaljiFakture[#Headers], 0)),"") ->  | D23: =IFERROR(INDEX(DetaljiFakture[],SMALL(IF(DetaljiFakture[Broj fakture]=rngFaktura,ROW(DetaljiFakture[])-ROW(DetaljiFakture[#Headers])), ROW(15:15)), MATCH($D$8, DetaljiFakture[#Headers], 0)),"") ->  | E23: =IFERROR(INDEX(DetaljiFakture[],SMALL(IF(DetaljiFakture[Broj fakture]=rngFaktura,ROW(DetaljiFakture[])-ROW(DetaljiFakture[#Headers])), ROW(15:15)), MATCH($E$8, DetaljiFakture[#Headers], 0)),"") ->  | F23: =IFERROR(INDEX(DetaljiFakture[],SMALL(IF(DetaljiFakture[Broj fakture]=rngFaktura,ROW(DetaljiFakture[])-ROW(DetaljiFakture[#Headers])), ROW(15:15)), MATCH($F$8, DetaljiFakture[#Headers], 0)),"") -> 
B24: =IFERROR(INDEX(DetaljiFakture[],SMALL(IF(DetaljiFakture[Broj fakture]=rngFaktura,ROW(DetaljiFakture[])-ROW(DetaljiFakture[#Headers])), ROW(16:16)), MATCH($B$8, DetaljiFakture[#Headers], 0)),"") ->  | C24: =IFERROR(INDEX(DetaljiFakture[],SMALL(IF(DetaljiFakture[Broj fakture]=rngFaktura,ROW(DetaljiFakture[])-ROW(DetaljiFakture[#Headers])), ROW(16:16)), MATCH($C$8, DetaljiFakture[#Headers], 0)),"") ->  | D24: =IFERROR(INDEX(DetaljiFakture[],SMALL(IF(DetaljiFakture[Broj fakture]=rngFaktura,ROW(DetaljiFakture[])-ROW(DetaljiFakture[#Headers])), ROW(16:16)), MATCH($D$8, DetaljiFakture[#Headers], 0)),"") ->  | E24: =IFERROR(INDEX(DetaljiFakture[],SMALL(IF(DetaljiFakture[Broj fakture]=rngFaktura,ROW(DetaljiFakture[])-ROW(DetaljiFakture[#Headers])), ROW(16:16)), MATCH($E$8, DetaljiFakture[#Headers], 0)),"") ->  | F24: =IFERROR(INDEX(DetaljiFakture[],SMALL(IF(DetaljiFakture[Broj fakture]=rngFaktura,ROW(DetaljiFakture[])-ROW(DetaljiFakture[#Headers])), ROW(16:16)), MATCH($F$8, DetaljiFakture[#Headers], 0)),"") -> 
B25: =IFERROR(INDEX(DetaljiFakture[],SMALL(IF(DetaljiFakture[Broj fakture]=rngFaktura,ROW(DetaljiFakture[])-ROW(DetaljiFakture[#Headers])), ROW(17:17)), MATCH($B$8, DetaljiFakture[#Headers], 0)),"") ->  | C25: =IFERROR(INDEX(DetaljiFakture[],SMALL(IF(DetaljiFakture[Broj fakture]=rngFaktura,ROW(DetaljiFakture[])-ROW(DetaljiFakture[#Headers])), ROW(17:17)), MATCH($C$8, DetaljiFakture[#Headers], 0)),"") ->  | D25: =IFERROR(INDEX(DetaljiFakture[],SMALL(IF(DetaljiFakture[Broj fakture]=rngFaktura,ROW(DetaljiFakture[])-ROW(DetaljiFakture[#Headers])), ROW(17:17)), MATCH($D$8, DetaljiFakture[#Headers], 0)),"") ->  | E25: =IFERROR(INDEX(DetaljiFakture[],SMALL(IF(DetaljiFakture[Broj fakture]=rngFaktura,ROW(DetaljiFakture[])-ROW(DetaljiFakture[#Headers])), ROW(17:17)), MATCH($E$8, DetaljiFakture[#Headers], 0)),"") ->  | F25: =IFERROR(INDEX(DetaljiFakture[],SMALL(IF(DetaljiFakture[Broj fakture]=rngFaktura,ROW(DetaljiFakture[])-ROW(DetaljiFakture[#Headers])), ROW(17:17)), MATCH($F$8, DetaljiFakture[#Headers], 0)),"") -> 
B26: =IFERROR(INDEX(DetaljiFakture[],SMALL(IF(DetaljiFakture[Broj fakture]=rngFaktura,ROW(DetaljiFakture[])-ROW(DetaljiFakture[#Headers])), ROW(18:18)), MATCH($B$8, DetaljiFakture[#Headers], 0)),"") ->  | C26: =IFERROR(INDEX(DetaljiFakture[],SMALL(IF(DetaljiFakture[Broj fakture]=rngFaktura,ROW(DetaljiFakture[])-ROW(DetaljiFakture[#Headers])), ROW(18:18)), MATCH($C$8, DetaljiFakture[#Headers], 0)),"") ->  | D26: =IFERROR(INDEX(DetaljiFakture[],SMALL(IF(DetaljiFakture[Broj fakture]=rngFaktura,ROW(DetaljiFakture[])-ROW(DetaljiFakture[#Headers])), ROW(18:18)), MATCH($D$8, DetaljiFakture[#Headers], 0)),"") ->  | E26: =IFERROR(INDEX(DetaljiFakture[],SMALL(IF(DetaljiFakture[Broj fakture]=rngFaktura,ROW(DetaljiFakture[])-ROW(DetaljiFakture[#Headers])), ROW(18:18)), MATCH($E$8, DetaljiFakture[#Headers], 0)),"") ->  | F26: =IFERROR(INDEX(DetaljiFakture[],SMALL(IF(DetaljiFakture[Broj fakture]=rngFaktura,ROW(DetaljiFakture[])-ROW(DetaljiFakture[#Headers])), ROW(18:18)), MATCH($F$8, DetaljiFakture[#Headers], 0)),"") -> 
B27: =IFERROR(INDEX(DetaljiFakture[],SMALL(IF(DetaljiFakture[Broj fakture]=rngFaktura,ROW(DetaljiFakture[])-ROW(DetaljiFakture[#Headers])), ROW(19:19)), MATCH($B$8, DetaljiFakture[#Headers], 0)),"") ->  | C27: =IFERROR(INDEX(DetaljiFakture[],SMALL(IF(DetaljiFakture[Broj fakture]=rngFaktura,ROW(DetaljiFakture[])-ROW(DetaljiFakture[#Headers])), ROW(19:19)), MATCH($C$8, DetaljiFakture[#Headers], 0)),"") ->  | D27: =IFERROR(INDEX(DetaljiFakture[],SMALL(IF(DetaljiFakture[Broj fakture]=rngFaktura,ROW(DetaljiFakture[])-ROW(DetaljiFakture[#Headers])), ROW(19:19)), MATCH($D$8, DetaljiFakture[#Headers], 0)),"") ->  | E27: =IFERROR(INDEX(DetaljiFakture[],SMALL(IF(DetaljiFakture[Broj fakture]=rngFaktura,ROW(DetaljiFakture[])-ROW(DetaljiFakture[#Headers])), ROW(19:19)), MATCH($E$8, DetaljiFakture[#Headers], 0)),"") ->  | F27: =IFERROR(INDEX(DetaljiFakture[],SMALL(IF(DetaljiFakture[Broj fakture]=rngFaktura,ROW(DetaljiFakture[])-ROW(DetaljiFakture[#Headers])), ROW(19:19)), MATCH($F$8, DetaljiFakture[#Headers], 0)),"") -> 
B28: =IFERROR(INDEX(DetaljiFakture[],SMALL(IF(DetaljiFakture[Broj fakture]=rngFaktura,ROW(DetaljiFakture[])-ROW(DetaljiFakture[#Headers])), ROW(20:20)), MATCH($B$8, DetaljiFakture[#Headers], 0)),"") ->  | C28: =IFERROR(INDEX(DetaljiFakture[],SMALL(IF(DetaljiFakture[Broj fakture]=rngFaktura,ROW(DetaljiFakture[])-ROW(DetaljiFakture[#Headers])), ROW(20:20)), MATCH($C$8, DetaljiFakture[#Headers], 0)),"") ->  | D28: =IFERROR(INDEX(DetaljiFakture[],SMALL(IF(DetaljiFakture[Broj fakture]=rngFaktura,ROW(DetaljiFakture[])-ROW(DetaljiFakture[#Headers])), ROW(20:20)), MATCH($D$8, DetaljiFakture[#Headers], 0)),"") ->  | E28: =IFERROR(INDEX(DetaljiFakture[],SMALL(IF(DetaljiFakture[Broj fakture]=rngFaktura,ROW(DetaljiFakture[])-ROW(DetaljiFakture[#Headers])), ROW(20:20)), MATCH($E$8, DetaljiFakture[#Headers], 0)),"") ->  | F28: =IFERROR(INDEX(DetaljiFakture[],SMALL(IF(DetaljiFakture[Broj fakture]=rngFaktura,ROW(DetaljiFakture[])-ROW(DetaljiFakture[#Headers])), ROW(20:20)), MATCH($F$8, DetaljiFakture[#Headers], 0)),"") -> 
B29: =IFERROR(INDEX(DetaljiFakture[],SMALL(IF(DetaljiFakture[Broj fakture]=rngFaktura,ROW(DetaljiFakture[])-ROW(DetaljiFakture[#Headers])), ROW(21:21)), MATCH($B$8, DetaljiFakture[#Headers], 0)),"") ->  | C29: =IFERROR(INDEX(DetaljiFakture[],SMALL(IF(DetaljiFakture[Broj fakture]=rngFaktura,ROW(DetaljiFakture[])-ROW(DetaljiFakture[#Headers])), ROW(21:21)), MATCH($C$8, DetaljiFakture[#Headers], 0)),"") ->  | D29: =IFERROR(INDEX(DetaljiFakture[],SMALL(IF(DetaljiFakture[Broj fakture]=rngFaktura,ROW(DetaljiFakture[])-ROW(DetaljiFakture[#Headers])), ROW(21:21)), MATCH($D$8, DetaljiFakture[#Headers], 0)),"") ->  | E29: =IFERROR(INDEX(DetaljiFakture[],SMALL(IF(DetaljiFakture[Broj fakture]=rngFaktura,ROW(DetaljiFakture[])-ROW(DetaljiFakture[#Headers])), ROW(21:21)), MATCH($E$8, DetaljiFakture[#Headers], 0)),"") ->  | F29: =IFERROR(INDEX(DetaljiFakture[],SMALL(IF(DetaljiFakture[Broj fakture]=rngFaktura,ROW(DetaljiFakture[])-ROW(DetaljiFakture[#Headers])), ROW(21:21)), MATCH($F$8, DetaljiFakture[#Headers], 0)),"") -> 
B30: =IFERROR(INDEX(DetaljiFakture[],SMALL(IF(DetaljiFakture[Broj fakture]=rngFaktura,ROW(DetaljiFakture[])-ROW(DetaljiFakture[#Headers])), ROW(22:22)), MATCH($B$8, DetaljiFakture[#Headers], 0)),"") ->  | C30: =IFERROR(INDEX(DetaljiFakture[],SMALL(IF(DetaljiFakture[Broj fakture]=rngFaktura,ROW(DetaljiFakture[])-ROW(DetaljiFakture[#Headers])), ROW(22:22)), MATCH($C$8, DetaljiFakture[#Headers], 0)),"") ->  | D30: =IFERROR(INDEX(DetaljiFakture[],SMALL(IF(DetaljiFakture[Broj fakture]=rngFaktura,ROW(DetaljiFakture[])-ROW(DetaljiFakture[#Headers])), ROW(22:22)), MATCH($D$8, DetaljiFakture[#Headers], 0)),"") ->  | E30: =IFERROR(INDEX(DetaljiFakture[],SMALL(IF(DetaljiFakture[Broj fakture]=rngFaktura,ROW(DetaljiFakture[])-ROW(DetaljiFakture[#Headers])), ROW(22:22)), MATCH($E$8, DetaljiFakture[#Headers], 0)),"") ->  | F30: =IFERROR(INDEX(DetaljiFakture[],SMALL(IF(DetaljiFakture[Broj fakture]=rngFaktura,ROW(DetaljiFakture[])-ROW(DetaljiFakture[#Headers])), ROW(22:22)), MATCH($F$8, DetaljiFakture[#Headers], 0)),"") -> 
B31: =IFERROR(INDEX(DetaljiFakture[],SMALL(IF(DetaljiFakture[Broj fakture]=rngFaktura,ROW(DetaljiFakture[])-ROW(DetaljiFakture[#Headers])), ROW(23:23)), MATCH($B$8, DetaljiFakture[#Headers], 0)),"") ->  | C31: =IFERROR(INDEX(DetaljiFakture[],SMALL(IF(DetaljiFakture[Broj fakture]=rngFaktura,ROW(DetaljiFakture[])-ROW(DetaljiFakture[#Headers])), ROW(23:23)), MATCH($C$8, DetaljiFakture[#Headers], 0)),"") ->  | D31: =IFERROR(INDEX(DetaljiFakture[],SMALL(IF(DetaljiFakture[Broj fakture]=rngFaktura,ROW(DetaljiFakture[])-ROW(DetaljiFakture[#Headers])), ROW(23:23)), MATCH($D$8, DetaljiFakture[#Headers], 0)),"") ->  | E31: =IFERROR(INDEX(DetaljiFakture[],SMALL(IF(DetaljiFakture[Broj fakture]=rngFaktura,ROW(DetaljiFakture[])-ROW(DetaljiFakture[#Headers])), ROW(23:23)), MATCH($E$8, DetaljiFakture[#Headers], 0)),"") ->  | F31: =IFERROR(INDEX(DetaljiFakture[],SMALL(IF(DetaljiFakture[Broj fakture]=rngFaktura,ROW(DetaljiFakture[])-ROW(DetaljiFakture[#Headers])), ROW(23:23)), MATCH($F$8, DetaljiFakture[#Headers], 0)),"") -> 
B32: =IFERROR(INDEX(DetaljiFakture[],SMALL(IF(DetaljiFakture[Broj fakture]=rngFaktura,ROW(DetaljiFakture[])-ROW(DetaljiFakture[#Headers])), ROW(24:24)), MATCH($B$8, DetaljiFakture[#Headers], 0)),"") ->  | C32: =IFERROR(INDEX(DetaljiFakture[],SMALL(IF(DetaljiFakture[Broj fakture]=rngFaktura,ROW(DetaljiFakture[])-ROW(DetaljiFakture[#Headers])), ROW(24:24)), MATCH($C$8, DetaljiFakture[#Headers], 0)),"") ->  | D32: =IFERROR(INDEX(DetaljiFakture[],SMALL(IF(DetaljiFakture[Broj fakture]=rngFaktura,ROW(DetaljiFakture[])-ROW(DetaljiFakture[#Headers])), ROW(24:24)), MATCH($D$8, DetaljiFakture[#Headers], 0)),"") ->  | E32: =IFERROR(INDEX(DetaljiFakture[],SMALL(IF(DetaljiFakture[Broj fakture]=rngFaktura,ROW(DetaljiFakture[])-ROW(DetaljiFakture[#Headers])), ROW(24:24)), MATCH($E$8, DetaljiFakture[#Headers], 0)),"") ->  | F32: =IFERROR(INDEX(DetaljiFakture[],SMALL(IF(DetaljiFakture[Broj fakture]=rngFaktura,ROW(DetaljiFakture[])-ROW(DetaljiFakture[#Headers])), ROW(24:24)), MATCH($F$8, DetaljiFakture[#Headers], 0)),"") -> 
B33: =IFERROR(INDEX(DetaljiFakture[],SMALL(IF(DetaljiFakture[Broj fakture]=rngFaktura,ROW(DetaljiFakture[])-ROW(DetaljiFakture[#Headers])), ROW(25:25)), MATCH($B$8, DetaljiFakture[#Headers], 0)),"") ->  | C33: =IFERROR(INDEX(DetaljiFakture[],SMALL(IF(DetaljiFakture[Broj fakture]=rngFaktura,ROW(DetaljiFakture[])-ROW(DetaljiFakture[#Headers])), ROW(25:25)), MATCH($C$8, DetaljiFakture[#Headers], 0)),"") ->  | D33: =IFERROR(INDEX(DetaljiFakture[],SMALL(IF(DetaljiFakture[Broj fakture]=rngFaktura,ROW(DetaljiFakture[])-ROW(DetaljiFakture[#Headers])), ROW(25:25)), MATCH($D$8, DetaljiFakture[#Headers], 0)),"") ->  | E33: =IFERROR(INDEX(DetaljiFakture[],SMALL(IF(DetaljiFakture[Broj fakture]=rngFaktura,ROW(DetaljiFakture[])-ROW(DetaljiFakture[#Headers])), ROW(25:25)), MATCH($E$8, DetaljiFakture[#Headers], 0)),"") ->  | F33: =IFERROR(INDEX(DetaljiFakture[],SMALL(IF(DetaljiFakture[Broj fakture]=rngFaktura,ROW(DetaljiFakture[])-ROW(DetaljiFakture[#Headers])), ROW(25:25)), MATCH($F$8, DetaljiFakture[#Headers], 0)),"") -> 
F34: Međuvrednost fakture | G34: =SUM(FakturaProjekta[Cena]) -> 2,014.00 RSD
F35: Poreska stopa | G35: =VLOOKUP(rngFaktura,FaktureGlavne[],5) -> 8.75%
F36: Porez na promet | G36: =G34*G35 -> 176.23 RSD
F37: Drugo | G37: =VLOOKUP(rngFaktura,FaktureGlavne[],6) -> 0
B38: ="Neka svi čekovi glase na "&NazivPreduzeća&"." -> Neka svi čekovi glase na Naziv preduzeća. | F38: Primljeni depozit | G38: =VLOOKUP(rngFaktura,FaktureGlavne[],7) -> 0
B39: Za <#> dan(a) krajnji je rok plaćanja ukupnog iznosa. Na neizmirene račune se plaća naknada za usluge u iznosu od <#>% mesečno. | F39: ZBIR | G39: =(G34+G36+G37)-G38 -> 2,190.23 RSD

Sheet Klijenti
C2: Klijenti
B3: Pretraživanje | C3: Preduzeće # | D3: Ime preduzeća | E3: Ime kontakta | F3: Adresa | G3: Grad | H3: Država | I3: Poštanski broj | J3: Telefon | K3: Adresa e-pošte | L3: Faks
B4: =C4& " - "&D4 -> 1 - Tailspin Toys | C4: 1 | D4: Tailspin Toys | E4: Dušan Stević | F4: Višnjićeva 345 | G4: Sombor | H4: SR | I4: 25000 | J4: 025-555-0178 | K4: neko@example.com | L4: 025-555-0187
B5: 2 - Contoso d.o.o. | C5: 2 | D5: Contoso d.o.o. | E5: Saša Pavić | F5: Karađorđeva 567 | G5: Kragujevac | H5: SR | I5: 34000 | J5: 034-555-0189 | K5: neko@example.com | L5: 034-555-0123
B6: UkupneVrednosti | C6: ="Ukupno Klijenata: "&SUBTOTAL(103,ListaKlijenata[Preduzeće '#]) -> Ukupno Klijenata: 2

Sheet Fakture – Glavne
B2: Fakture
B3: Broj fakture | C3: Preduzeće | D3: Datum fakture | E3: Opis projekta | F3: Poreska stopa | G3: Drugo | H3: Depozit | I3: Ukupna vrednost detalja | J3: Ukupna vrednost fakture | K3: Napomene
B4: 3-456-1 | C4: 1 - Tailspin Toys | D4: =TODAY() -> 2019-07-29 | E4: Projekat 1 | F4: 8.75% | G4: 100.00 RSD | H4: 100.00 RSD | I4: =SUMIF(DetaljiFakture[Broj fakture],"="&FaktureGlavne[[#This Row],[Broj fakture]],DetaljiFakture[Zbir]) -> 5,200.00 RSD | J4: =(FaktureGlavne[[#This Row],[Ukupna vrednost detalja]]*(1+FaktureGlavne[[#This Row],[Poreska stopa]]))+FaktureGlavne[[#This Row],[Drugo]]-FaktureGlavne[[#This Row],[Depozit]] -> 5,655.00 RSD
B5: 3-456-2 | C5: 2 - Contoso d.o.o. | D5: =TODAY()+10 -> 2019-08-08 | E5: Projekat 2 | F5: 8.75% | I5: =SUMIF(DetaljiFakture[Broj fakture],"="&FaktureGlavne[[#This Row],[Broj fakture]],DetaljiFakture[Zbir]) -> 2,014.00 RSD | J5: =(FaktureGlavne[[#This Row],[Ukupna vrednost detalja]]*(1+FaktureGlavne[[#This Row],[Poreska stopa]]))+FaktureGlavne[[#This Row],[Drugo]]-FaktureGlavne[[#This Row],[Depozit]] -> 2,190.23 RSD
B6: UkupneVrednosti | C6: ="Ukupne fakture: "&SUBTOTAL(103,FaktureGlavne[Broj fakture]) -> Ukupne fakture: 2 | G6: =SUBTOTAL(109,FaktureGlavne[Drugo]) -> 100.00 RSD | H6: =SUBTOTAL(109,FaktureGlavne[Depozit]) -> 100.00 RSD | I6: =SUBTOTAL(109,FaktureGlavne[Ukupna vrednost detalja]) -> 7,214.00 RSD | J6: =SUBTOTAL(109,FaktureGlavne[Ukupna vrednost fakture]) -> 7,845.23 RSD

Sheet Detalji fakture
B2: Detalji fakture
B3: Opis | C3: Broj fakture | D3: Broj stavke | E3: Kol. | F3: Cena po jedinici | G3: Popust | H3: Zbir
B4: Faktura 3-456-1, podaci 1 | C4: 3-456-1 | D4: 1 | E4: 1 | F4: 1.00 RSD | G4: 1.00 RSD | H4: =(DetaljiFakture[[#This Row],[Kol.]]*DetaljiFakture[[#This Row],[Cena po jedinici]])-DetaljiFakture[[#This Row],[Popust]] -> 0.00 RSD
B5: Faktura 3-456-1, podaci 2 | C5: 3-456-1 | D5: 2 | E5: 2 | F5: 2.00 RSD | G5: 2.00 RSD | H5: =(DetaljiFakture[[#This Row],[Kol.]]*DetaljiFakture[[#This Row],[Cena po jedinici]])-DetaljiFakture[[#This Row],[Popust]] -> 2.00 RSD
B6: Faktura 3-456-1, podaci 3 | C6: 3-456-1 | D6: 3 | E6: 3 | F6: 3.00 RSD | G6: 3.00 RSD | H6: =(DetaljiFakture[[#This Row],[Kol.]]*DetaljiFakture[[#This Row],[Cena po jedinici]])-DetaljiFakture[[#This Row],[Popust]] -> 6.00 RSD
B7: Faktura 3-456-1, podaci 4 | C7: 3-456-1 | D7: 4 | E7: 4 | F7: 4.00 RSD | G7: 4.00 RSD | H7: =(DetaljiFakture[[#This Row],[Kol.]]*DetaljiFakture[[#This Row],[Cena po jedinici]])-DetaljiFakture[[#This Row],[Popust]] -> 12.00 RSD
B8: Faktura 3-456-1, podaci 5 | C8: 3-456-1 | D8: 5 | E8: 5 | F8: 5.00 RSD | G8: 5.00 RSD | H8: =(DetaljiFakture[[#This Row],[Kol.]]*DetaljiFakture[[#This Row],[Cena po jedinici]])-DetaljiFakture[[#This Row],[Popust]] -> 20.00 RSD
B9: Faktura 3-456-1, podaci 6 | C9: 3-456-1 | D9: 6 | E9: 6 | F9: 6.00 RSD | G9: 6.00 RSD | H9: =(DetaljiFakture[[#This Row],[Kol.]]*DetaljiFakture[[#This Row],[Cena po jedinici]])-DetaljiFakture[[#This Row],[Popust]] -> 30.00 RSD
B10: Faktura 3-456-1, podaci 7 | C10: 3-456-1 | D10: 7 | E10: 7 | F10: 7.00 RSD | G10: 7.00 RSD | H10: =(DetaljiFakture[[#This Row],[Kol.]]*DetaljiFakture[[#This Row],[Cena po jedinici]])-DetaljiFakture[[#This Row],[Popust]] -> 42.00 RSD
B11: Faktura 3-456-1, podaci 8 | C11: 3-456-1 | D11: 8 | E11: 8 | F11: 8.00 RSD | G11: 8.00 RSD | H11: =(DetaljiFakture[[#This Row],[Kol.]]*DetaljiFakture[[#This Row],[Cena po jedinici]])-DetaljiFakture[[#This Row],[Popust]] -> 56.00 RSD
B12: Faktura 3-456-1, podaci 9 | C12: 3-456-1 | D12: 9 | E12: 9 | F12: 9.00 RSD | G12: 9.00 RSD | H12: =(DetaljiFakture[[#This Row],[Kol.]]*DetaljiFakture[[#This Row],[Cena po jedinici]])-DetaljiFakture[[#This Row],[Popust]] -> 72.00 RSD
B13: Faktura 3-456-1, podaci 10 | C13: 3-456-1 | D13: 10 | E13: 10 | F13: 10.00 RSD | G13: 10.00 RSD | H13: =(DetaljiFakture[[#This Row],[Kol.]]*DetaljiFakture[[#This Row],[Cena po jedinici]])-DetaljiFakture[[#This Row],[Popust]] -> 90.00 RSD
B14: Faktura 3-456-1, podaci 11 | C14: 3-456-1 | D14: 11 | E14: 11 | F14: 11.00 RSD | G14: 11.00 RSD | H14: =(DetaljiFakture[[#This Row],[Kol.]]*DetaljiFakture[[#This Row],[Cena po jedinici]])-DetaljiFakture[[#This Row],[Popust]] -> 110.00 RSD
B15: Faktura 3-456-1, podaci 12 | C15: 3-456-1 | D15: 12 | E15: 12 | F15: 12.00 RSD | G15: 12.00 RSD | H15: =(DetaljiFakture[[#This Row],[Kol.]]*DetaljiFakture[[#This Row],[Cena po jedinici]])-DetaljiFakture[[#This Row],[Popust]] -> 132.00 RSD
B16: Faktura 3-456-1, podaci 13 | C16: 3-456-1 | D16: 13 | E16: 13 | F16: 13.00 RSD | G16: 13.00 RSD | H16: =(DetaljiFakture[[#This Row],[Kol.]]*DetaljiFakture[[#This Row],[Cena po jedinici]])-DetaljiFakture[[#This Row],[Popust]] -> 156.00 RSD
B17: Faktura 3-456-1, podaci 14 | C17: 3-456-1 | D17: 14 | E17: 14 | F17: 14.00 RSD | G17: 14.00 RSD | H17: =(DetaljiFakture[[#This Row],[Kol.]]*DetaljiFakture[[#This Row],[Cena po jedinici]])-DetaljiFakture[[#This Row],[Popust]] -> 182.00 RSD
B18: Faktura 3-456-1, podaci 15 | C18: 3-456-1 | D18: 15 | E18: 15 | F18: 15.00 RSD | G18: 15.00 RSD | H18: =(DetaljiFakture[[#This Row],[Kol.]]*DetaljiFakture[[#This Row],[Cena po jedinici]])-DetaljiFakture[[#This Row],[Popust]] -> 210.00 RSD
B19: Faktura 3-456-1, podaci 16 | C19: 3-456-1 | D19: 16 | E19: 16 | F19: 16.00 RSD | G19: 16.00 RSD | H19: =(DetaljiFakture[[#This Row],[Kol.]]*DetaljiFakture[[#This Row],[Cena po jedinici]])-DetaljiFakture[[#This Row],[Popust]] -> 240.00 RSD
B20: Faktura 3-456-1, podaci 17 | C20: 3-456-1 | D20: 17 | E20: 17 | F20: 17.00 RSD | G20: 17.00 RSD | H20: =(DetaljiFakture[[#This Row],[Kol.]]*DetaljiFakture[[#This Row],[Cena po jedinici]])-DetaljiFakture[[#This Row],[Popust]] -> 272.00 RSD
B21: Faktura 3-456-1, podaci 18 | C21: 3-456-1 | D21: 18 | E21: 18 | F21: 18.00 RSD | G21: 18.00 RSD | H21: =(DetaljiFakture[[#This Row],[Kol.]]*DetaljiFakture[[#This Row],[Cena po jedinici]])-DetaljiFakture[[#This Row],[Popust]] -> 306.00 RSD
B22: Faktura 3-456-1, podaci 19 | C22: 3-456-1 | D22: 19 | E22: 19 | F22: 19.00 RSD | G22: 19.00 RSD | H22: =(DetaljiFakture[[#This Row],[Kol.]]*DetaljiFakture[[#This Row],[Cena po jedinici]])-DetaljiFakture[[#This Row],[Popust]] -> 342.00 RSD
B23: Faktura 3-456-1, podaci 20 | C23: 3-456-1 | D23: 20 | E23: 20 | F23: 20.00 RSD | G23: 20.00 RSD | H23: =(DetaljiFakture[[#This Row],[Kol.]]*DetaljiFakture[[#This Row],[Cena po jedinici]])-DetaljiFakture[[#This Row],[Popust]] -> 380.00 RSD
B24: Faktura 3-456-1, podaci 21 | C24: 3-456-1 | D24: 21 | E24: 21 | F24: 21.00 RSD | G24: 21.00 RSD | H24: =(DetaljiFakture[[#This Row],[Kol.]]*DetaljiFakture[[#This Row],[Cena po jedinici]])-DetaljiFakture[[#This Row],[Popust]] -> 420.00 RSD
B25: Faktura 3-456-1, podaci 22 | C25: 3-456-1 | D25: 22 | E25: 22 | F25: 22.00 RSD | G25: 22.00 RSD | H25: =(DetaljiFakture[[#This Row],[Kol.]]*DetaljiFakture[[#This Row],[Cena po jedinici]])-DetaljiFakture[[#This Row],[Popust]] -> 462.00 RSD
B26: Faktura 3-456-1, podaci 23 | C26: 3-456-1 | D26: 23 | E26: 23 | F26: 23.00 RSD | G26: 23.00 RSD | H26: =(DetaljiFakture[[#This Row],[Kol.]]*DetaljiFakture[[#This Row],[Cena po jedinici]])-DetaljiFakture[[#This Row],[Popust]] -> 506.00 RSD
B27: Faktura 3-456-1, podaci 24 | C27: 3-456-1 | D27: 24 | E27: 24 | F27: 24.00 RSD | G27: 24.00 RSD | H27: =(DetaljiFakture[[#This Row],[Kol.]]*DetaljiFakture[[#This Row],[Cena po jedinici]])-DetaljiFakture[[#This Row],[Popust]] -> 552.00 RSD
B28: Faktura 3-456-1, podaci 25 | C28: 3-456-1 | D28: 25 | E28: 25 | F28: 25.00 RSD | G28: 25.00 RSD | H28: =(DetaljiFakture[[#This Row],[Kol.]]*DetaljiFakture[[#This Row],[Cena po jedinici]])-DetaljiFakture[[#This Row],[Popust]] -> 600.00 RSD
B29: Faktura 3-456-2, podaci 1 | C29: 3-456-2 | D29: Z4567 | E29: 39 | F29: 5.00 RSD | H29: =(DetaljiFakture[[#This Row],[Kol.]]*DetaljiFakture[[#This Row],[Cena po jedinici]])-DetaljiFakture[[#This Row],[Popust]] -> 195.00 RSD
B30: Faktura 3-456-2, podaci 2 | C30: 3-456-2 | D30: Z4568 | E30: 40 | F30: 4.00 RSD | G30: 5.00 RSD | H30: =(DetaljiFakture[[#This Row],[Kol.]]*DetaljiFakture[[#This Row],[Cena po jedinici]])-DetaljiFakture[[#This Row],[Popust]] -> 155.00 RSD
B31: Faktura 3-456-2, podaci 3 | C31: 3-456-2 | D31: Z4569 | E31: 30 | F31: 6.00 RSD | G31: 7.00 RSD | H31: =(DetaljiFakture[[#This Row],[Kol.]]*DetaljiFakture[[#This Row],[Cena po jedinici]])-DetaljiFakture[[#This Row],[Popust]] -> 173.00 RSD
B32: Faktura 3-456-2, podaci 4 | C32: 3-456-2 | D32: Z4570 | E32: 40 | F32: 7.00 RSD | H32: =(DetaljiFakture[[#This Row],[Kol.]]*DetaljiFakture[[#This Row],[Cena po jedinici]])-DetaljiFakture[[#This Row],[Popust]] -> 280.00 RSD
B33: Faktura 3-456-2, podaci 5 | C33: 3-456-2 | D33: Z4571 | E33: 10 | F33: 4.00 RSD | H33: =(DetaljiFakture[[#This Row],[Kol.]]*DetaljiFakture[[#This Row],[Cena po jedinici]])-DetaljiFakture[[#This Row],[Popust]] -> 40.00 RSD
B34: Faktura 3-456-2, podaci 6 | C34: 3-456-2 | D34: Z4572 | E34: 5 | F34: 8.00 RSD | H34: =(DetaljiFakture[[#This Row],[Kol.]]*DetaljiFakture[[#This Row],[Cena po jedinici]])-DetaljiFakture[[#This Row],[Popust]] -> 40.00 RSD
B35: Faktura 3-456-2, podaci 7 | C35: 3-456-2 | D35: Z4573 | E35: 70 | F35: 6.00 RSD | H35: =(DetaljiFakture[[#This Row],[Kol.]]*DetaljiFakture[[#This Row],[Cena po jedinici]])-DetaljiFakture[[#This Row],[Popust]] -> 420.00 RSD
B36: Faktura 3-456-2, podaci 8 | C36: 3-456-2 | D36: Z4574 | E36: 25 | F36: 4.00 RSD | H36: =(DetaljiFakture[[#This Row],[Kol.]]*DetaljiFakture[[#This Row],[Cena po jedinici]])-DetaljiFakture[[#This Row],[Popust]] -> 100.00 RSD
B37: Faktura 3-456-2, podaci 9 | C37: 3-456-2 | D37: Z4575 | E37: 5 | F37: 7.00 RSD | G37: 3.00 RSD | H37: =(DetaljiFakture[[#This Row],[Kol.]]*DetaljiFakture[[#This Row],[Cena po jedinici]])-DetaljiFakture[[#This Row],[Popust]] -> 32.00 RSD
B38: Faktura 3-456-2, podaci 10 | C38: 3-456-2 | D38: Z4576 | E38: 80 | F38: 1.00 RSD | H38: =(DetaljiFakture[[#This Row],[Kol.]]*DetaljiFakture[[#This Row],[Cena po jedinici]])-DetaljiFakture[[#This Row],[Popust]] -> 80.00 RSD
B39: Faktura 3-456-2, podaci 11 | C39: 3-456-2 | D39: Z4577 | E39: 65 | F39: 7.00 RSD | H39: =(DetaljiFakture[[#This Row],[Kol.]]*DetaljiFakture[[#This Row],[Cena po jedinici]])-DetaljiFakture[[#This Row],[Popust]] -> 455.00 RSD
B40: Faktura 3-456-2, podaci 12 | C40: 3-456-2 | D40: Z4578 | E40: 44 | F40: 1.00 RSD | H40: =(DetaljiFakture[[#This Row],[Kol.]]*DetaljiFakture[[#This Row],[Cena po jedinici]])-DetaljiFakture[[#This Row],[Popust]] -> 44.00 RSD

Sheet Osnovni podaci praćenja fakture
B1: Osnovni podaci praćenja fakture
B4: Predložak za praćenje faktura je dizajniran za održavanje istorije klijenata, faktura i detalja o fakturi tako da možete da skladištite više faktura bez pravljenja više datoteka. Možete da koristite praćenje faktura i za analizu podataka koje ste prethodno fakturisali. Na primer, možete da prikažete sve fakture za klijenta, za određeni projekat ili sve fakture od prošlog meseca, prošle godine i još mnogo toga.
B5: Pre nego što počnete sa radom, pogledajte date uzorke podataka. Na listu „Faktura“ izaberite ćeliju sa desne strane stavke „Broj fakture“ (Ćelija L8) i padajuća lista će se pojaviti. Kliknite na strelicu nadole, a zatim izaberite uzorak fakture. Primetićete kako se sve informacije o fakturi automatski menjaju tako da odražavaju izabranu fakturu. Sada pogledajte listove „Klijenti“, „Fakture - Glavne“ i „Detalji o fakturi“. Svaki od ovih listova pruža informacije za fakturu, a sve promene koje izvršite će biti automatski ažurirane.
B6: Kako da počnem sa radom?
B7: Izmenite list fakture tako da odražava informacije o vašem preduzeću pomoću sledećih koraka:
B8: 1. | C8: Idite na list „Faktura“ , na kartici „Redigovanje“, u okviru grupe „Zaštita“, a zatim izaberite stavku „Ukloni zaštitu lista“.
C9: Napomena: List „Faktura“ je zaštićen kako bi se izbegle nenamerne promene, pošto se, kao što je prethodno pomenuto, većina podataka na ovom listu izvlači iz ostalih listova iz radne sveske.
B10: 2. | C10: Prilagodite zaglavlje fakture tako što ćete uneti ime preduzeća, ulicu i broj, grad, poštanski broj, adresu e-pošte, veb-sajt, i tako dalje. Na dnu fakture (red 43) izmenite uputstva za plaćanje.
C11: Važno: Nemojte menjati informacije o naplati ili fakturi. Sve ove ćelije imaju formule koje će automatski ažurirati fakturu, kao što je navedeno u odeljku „Osnovni podaci praćenja fakture“.
B12: 3. | C12: (Opciono) Izmenite boje u celoj radnoj svesci: Na kartici „Raspored na stranici“, u grupi „Teme“, izaberite stavku „Boje“, a zatim izaberite drugi skup boja teme iz galerije boja.
B13: Savet: Kreirajte prilagođeni skup boja teme tako da odgovara brendiranju vašeg preduzeća! Da biste to uradili, na kartici „Raspored na stranici“, u grupi „Teme“, izaberite stavku „Boje“, a zatim izaberite stavku „Prilogodi boje“. Za više informacija o kreiranju prilagođenog skupa boja pogledajte sledeću temu:
C14: Prilagođavanje teme dokumenta.
B15: 4. | C15: Kada unesete željene promene, vratite se na list „Faktura“ i na kartici „Redigovanje“, u grupi „Promene“, izaberite stavku „Zaštita lista“, a zatim kliknite na dugme „U redu“. Kada je list „Faktura“ zaštićen, jedina ćelija koju možete da izaberete je ćelija sa padajućom listom „Broj fakture“.
B16: Kako da kreiram fakturu?
B17: 1. | C17: Na listu „Klijenti“ unesite informacije o klijentu kao što su ime preduzeća i adresa. Imajte na umu da broj preduzeća predstavlja važnu stavku jer pruža jedinstveni identifikator svakog preduzeća koje se koristi u praćenju faktura. Takođe ne zaboravite da je potrebno samo jednom da dodate preduzeće. Za naredne fakture za isto preduzeće, ovaj korak može da bude preskočen.
C18: Napomena: Ako isti broj dodelite većem broju preduzeća ili unesete isto ime preduzeća više puta, stavke će se zacrveneti da bi vas upozorile na dupliranje.
B19: 2. | C19: Na listu „Fakture - Glavne“ unesite primarne informacije o fakturi kao što su broj fakture, datum fakture i opis projekta. Kao i broj preduzeća, broj fakture predstavlja važnu stavku jer pruža jedinstveni identifikator svake fakture koja se koristi u praćenju faktura. Još jedna važna stavka je preduzeće. Kada izaberete preduzeće sa date padajuće liste, faktura se povezuje sa tim preduzećem. Zatim, kada izaberete broj fakture na listu „Faktura“, informacije o tom preduzeću, kao što su ime preduzeća i adresa, biće automatski popunjene u fakturi.
C20: Napomena: Ako isti broj dodelite većem broju faktura, stavke će se zacrveneti da bi vas upozorile na dupliranje.
B21: 3. | C21: Na listu „Detalji o fakturi“ unesite detalje o fakturi, kao što su opis stavke, broj stavke, količina i cena po jedinici. Padajuća lista „Broj fakture“ pruža listu faktura koje ste uneli na list „Fakture - Glavne“ da bi se olakšao unos podataka. Slično broju preduzeća u prethodnom koraku, broj faktura povezuje taj detalj stavke sa određenom fakturom. Kada izaberete broj fakture na listu „Faktura“ iz padajuće liste „Broj fakture“, povezani detalj stavki fakture će se pojaviti za tu fakturu.
C22: Napomena: Ograničeni ste na 25 detalja stavki po fakturi. Ako dodate više od 25 stavki, svi odgovarajući unosi će se zacrveneti da bi vas upozorili na ovo ograničenje. Ako imate više od 25 stavki za fakturisanje, moraćete da kreirate drugu fakturu.
B23: Kako da dodam još klijenata, faktura i detalja o fakturi?
B24: Podaci o klijentima, fakturama i detaljima fakture skladište se u Excel tabelama. Kada dodate novi red u tabelu, on će se automatski formatirati, a svi proračuni će biti kopirani. Da biste dodali nove redove u tabelu, uradite nešto od sledećeg:
B25: ● | C25: Ako tabela nema red sa zbirom, počnite da kucate ispod tabele i ona će se automatski razviti kad pritisnete taster Enter ili Tab.
B26: ● | C26: Postavite pokazivač za ćeliju u poslednju ćeliju iznad reda sa zbirom, na primer u tabeli „Fakture“, u ćeliju „Beleške“ za poslednju fakturu, a zatim pritisnite taster Tab.
B27: ● | C27: Na kartici „Početak“, u grupi „Ćelije“, izaberite stavku „Umetanje“, a zatim izaberite stavku „Redovi tabele iznad“ ili „Redovi tabele ispod“.
B28: ● | C28: U donjem desnom uglu tabele postavite miša na regulator veličine tabele i prevucite ga nadole da biste povećali broj dostupnih redova tabele.
B29: Kako da analiziram detalje o fakturi?
B30: Kao što je navedeno u odeljku „Osnovni podaci o praćenju faktura“, kada unesete nekoliko faktura, možete da prikažete listu svih faktura za određenog klijenta, za određeni projekat, interval datuma i još mnogo toga. Ovaj tip analize se vrši pomoću filtera koji omogućava brzo sužavanje liste podataka. Da biste pristupili filtriranju u tabeli „Klijenti“, „Fakture“ ili „Detalji o fakturi“, kliknite na strelicu nadole pored bilo kog imena polja u tabeli. Prikazaće se okno za filtriranje sa različitim opcijama filtriranja. Evo nekoliko primera filtriranja koji će vam pomoći da počnete sa radom:
B31: ● | C31: Da biste videli ukupan iznos koji ste fakturisali određenom klijentu: Na listu „Fakture - Glavne“, sa desne strane polja „Broj preduzeća“, kliknite na strelicu nadole. U oknu za filtriranje kliknite na stavku „Izaberi sve“ da biste opozvali izbor svih preduzeća, a zatim izaberite željeno preduzeće i kliknite na dugme „U redu“.
C32: Savet: U okviru okna za Filter možete da ukucate i ime klijenta u okvir za tekst „Pretraga“ da biste brzo pretražili dostupnu listu.
B33: ● | C33: Da biste prikazali sve fakture za određenog klijenta i određene projekte: Počnite tako što ćete koristiti filtriranje za željenog klijenta pomoću koraka koji su navedeni u prethodnom primeru. Zatim, sa desne strane broja projekta, kliknite na strelicu nadole. U oknu za filtriranje izaberite željeni projekat ili projekte, a zatim kliknite na dugme „U redu“.
B34: ● | C34: Da biste prikazali sve fakture od prethodnog meseca: Na listu „Fakture - Glavne“, sa desne strane polja „Datum fakture“, kliknite na strelicu nadole, postavite pokazivač na filtere datuma, a zatim izaberite stavku „Prethodni mesec“.
B35: ● | C35: Da biste prikazali sve klijente sa istim pozivnim brojem: Na listu „Klijenti“, sa desne strane polja „Telefon“, kliknite na strelicu nadole. U oknu za filtriranje, kliknite u okvir za tekst „Pretraga“, ukucajte pozivni broj, a zatim kliknite na dugme „U redu“.
B36: Saveti za filtriranje
B37: ● | C37: Ako tabela ima red sa zbirom, kao što su klijenti i fakture, izračunati zbirovi odraziće se samo na filtriranu listu.
B38: ● | C38: Koristite više filtera u jednom polju ili u više polja da biste precizno podesili rezultate.
B39: ● | C39: Da biste obrisali jedan filter, kliknite na strelicu nadole za prethodno filtriranu kolonu, a zatim izaberite stavku „Obriši filter iz <ime polja>.
B40: ● | C40: Da biste obrisali više filtera istovremeno, postavite pokazivač za ćeliju u tabelu, na kartici „Početak“, u grupi „Uređivanje“, izaberite stavku „Sortiraj i filtriraj“, a zatim izaberite stavku „Obriši“.
